Workbook

Sheet Sheet1
A1: Home Loan Calculation and Savings Tool
B3: Input Cells
C5: Loan Amount: | D5: 40000 | F5: Dollars | H5: 8962.51
C6: Interest Rate: | D6: 0.1 | F6: Annual
C7: Loan Duration: | D7: 12 | F7: Years | I7: =SUM(I18:I61) -> 68836.50794 | J7: =SUM(J18:J61) -> 28836.50794 | K7: 40000
C9: =SUM(C18:C118) -> 59873.99443 | D9: =SUM(D18:D118) -> 19873.99602 | E9: 39999.99841
B10: Calculated Minimum Payment | O10: =SUM(O18:O118) -> 58381.16182 | P10: =SUM(P18:P118) -> 19851.42325 | Q10: 38529.73856 | U10: =SUM(U18:U161) -> 68836.50794 | V10: =SUM(V18:V161) -> 28836.50794 | W10: 40000
C12: Monthly Payment: | D12: =PMT(D6/12,D7*12,D5)*-1 -> 478.0313051 | F12: $/month | H12: 100
B17: Year | C17: Total Payments | D17: Total Interest | E17: Total Principal | F17: Balance | H17: Year | I17: Total Payments | J17: Total Interest | K17: Total Principal | L17: Balance | N17: Month | O17: Payment | P17: Interest | Q17: Principal | R17: Balance | T17: Month | U17: Payment | V17: Interest | W17: Principal | X17: Balance
B18: 1 | C18: 6936.375662 | D18: 3861.606635 | E18: 3074.769027 | F18: 36925.231 | H18: 1 | I18: 5736.375662 | J18: 3918.163444 | K18: 1818.212218 | L18: 38181.7878 | N18: 1 | O18: =payment+additional_payment -> 578.0313051 | P18: =(rate/12)*amount -> 333.3333333 | Q18: =O18-P18 -> 244.6979718 | R18: =amount-Q18 -> 39755.30203 | T18: 1 | U18: =payment -> 478.0313051 | V18: =(rate/12)*amount -> 333.3333333 | W18: =U18-V18 -> 144.6979718 | X18: =amount-W18 -> 39855.30203
B19: 2 | C19: 6936.375662 | D19: 3539.638138 | E19: 3396.737523 | F19: 33528.4934 | H19: 2 | I19: 5736.375662 | J19: 3727.772865 | K19: 2008.602796 | L19: 36173.185 | N19: 2 | O19: 578.0313051 | P19: =(rate/12)*R18 -> 331.2941836 | Q19: =O19-P19 -> 246.7371216 | R19: =R18-Q19 -> 39508.56491 | T19: 2 | U19: 478.0313051 | V19: =(rate/12)*X18 -> 332.1275169 | W19: =U19-V19 -> 145.9037882 | X19: =X18-W19 -> 39709.39824
B20: 3 | C20: 6936.375662 | D20: 3183.955333 | E20: 3752.420329 | F20: 29776.0731 | H20: 3 | I20: 5736.375662 | J20: 3517.445905 | K20: 2218.929756 | L20: 33954.2552 | N20: 3 | O20: 578.0313051 | P20: 329.2380409 | Q20: =O20-P20 -> 248.7932642 | R20: =R19-Q20 -> 39259.77164 | T20: 3 | U20: 478.0313051 | V20: 330.911652 | W20: =U20-V20 -> 147.1196531 | X20: =X19-W20 -> 39562.27859
B21: 4 | C21: 6936.375662 | D21: 2791.02789 | E21: 4145.347772 | F21: 25630.7253 | H21: 4 | I21: 5736.375662 | J21: 3285.094964 | K21: 2451.280697 | L21: 31502.9745 | N21: 4 | O21: 578.0313051 | P21: 327.1647637 | Q21: 250.8665414 | R21: 39008.9051 | T21: 4 | U21: 478.0313051 | V21: 329.6856549 | W21: 148.3456502 | X21: 39413.93294
B22: 5 | C22: 6936.375662 | D22: 2356.955809 | E22: 4579.419852 | F22: 21051.3055 | H22: 5 | I22: 5736.375662 | J22: 3028.413843 | K22: 2707.961818 | L22: 28795.0127 | N22: 5 | O22: 578.0313051 | P22: 325.0742092 | Q22: 252.957096 | R22: 38755.948 | T22: 5 | U22: 478.0313051 | V22: 328.4494411 | W22: 149.581864 | X22: 39264.35107
B23: 6 | C23: 6936.375662 | D23: 1877.430709 | E23: 5058.944952 | F23: 15992.3605 | H23: 6 | I23: 5736.375662 | J23: 2744.854855 | K23: 2991.520807 | L23: 25803.4919 | N23: 6 | O23: 578.0313051 | P23: 322.9662334 | Q23: 255.0650718 | R23: 38500.88293 | T23: 6 | U23: 478.0313051 | V23: 327.2029256 | W23: 150.8283795 | X23: 39113.52269
B24: 7 | C24: 6936.375662 | D24: 1347.693065 | E24: 5588.682596 | F24: 10403.6779 | H24: 7 | I24: 5736.375662 | J24: 2431.603535 | K24: 3304.772127 | L24: 22498.7198 | N24: 7 | O24: 578.0313051 | P24: 320.8406911 | Q24: 257.190614 | R24: 38243.69232 | T24: 7 | U24: 478.0313051 | V24: 325.9460224 | W24: 152.0852827 | X24: 38961.43741
B25: 8 | C25: 6936.375662 | D25: 762.4849678 | E25: 6173.890694 | F25: 4229.7873 | H25: 8 | I25: 5736.375662 | J25: 2085.550708 | K25: 3650.824953 | L25: 18847.8948 | N25: 8 | O25: 578.0313051 | P25: 318.697436 | Q25: 259.3338691 | R25: 37984.35845 | T25: 8 | U25: 478.0313051 | V25: 324.6786451 | W25: 153.35266 | X25: 38808.08475
B26: 9 | C26: 4382.989136 | D26: 153.2034741 | E26: 4229.785662 | F26: 0.0016 | H26: 9 | I26: 5736.375662 | J26: 1703.261629 | K26: 4033.114033 | L26: 14814.7808 | N26: 9 | O26: 578.0313051 | P26: 316.5363204 | Q26: 261.4949847 | R26: 37722.86347 | T26: 9 | U26: 478.0313051 | V26: 323.4007063 | W26: 154.6305989 | X26: 38653.45415
H27: 10 | I27: 5736.375662 | J27: 1280.941887 | K27: 4455.433775 | L27: 10359.347 | N27: 10 | O27: 578.0313051 | P27: 314.3571955 | Q27: 263.6741096 | R27: 37459.18936 | T27: 10 | U27: 478.0313051 | V27: 322.1121179 | W27: 155.9191872 | X27: 38497.53496
H28: 11 | I28: 5736.375662 | J28: 814.3997495 | K28: 4921.975912 | L28: 5437.3711 | N28: 11 | O28: 578.0313051 | P28: 312.1599113 | Q28: 265.8713938 | R28: 37193.31796 | T28: 11 | U28: 478.0313051 | V28: 320.8127914 | W28: 157.2185138 | X28: 38340.31645
H29: 12 | I29: 5736.375662 | J29: 299.0045539 | K29: 5437.371108 | L29: 0 | N29: 12 | O29: 578.0313051 | P29: 309.9443163 | Q29: 268.0869888 | R29: 36925.23097 | T29: 12 | U29: 478.0313051 | V29: 319.5026371 | W29: 158.528668 | X29: 38181.78778
N30: 13 | O30: 578.0313051 | P30: 307.7102581 | Q30: 270.321047 | R30: 36654.90993 | T30: 13 | U30: 478.0313051 | V30: 318.1815649 | W30: 159.8497403 | X30: 38021.93804
N31: 14 | O31: 578.0313051 | P31: 305.4575827 | Q31: 272.5737224 | R31: 36382.3362 | T31: 14 | U31: 478.0313051 | V31: 316.8494837 | W31: 161.1818214 | X31: 37860.75622
N32: 15 | O32: 578.0313051 | P32: 303.186135 | Q32: 274.8451701 | R32: 36107.49103 | T32: 15 | U32: 478.0313051 | V32: 315.5063018 | W32: 162.5250033 | X32: 37698.23122
N33: 16 | O33: 578.0313051 | P33: 300.8957586 | Q33: 277.1355465 | R33: 35830.35549 | T33: 16 | U33: 478.0313051 | V33: 314.1519268 | W33: 163.8793783 | X33: 37534.35184
N34: 17 | O34: 578.0313051 | P34: 298.5862957 | Q34: 279.4450094 | R34: 35550.91048 | T34: 17 | U34: 478.0313051 | V34: 312.7862653 | W34: 165.2450398 | X34: 37369.1068
N35: 18 | O35: 578.0313051 | P35: 296.2575873 | Q35: 281.7737178 | R35: 35269.13676 | T35: 18 | U35: 478.0313051 | V35: 311.4092233 | W35: 166.6220818 | X35: 37202.48472
N36: 19 | O36: 578.0313051 | P36: 293.909473 | Q36: 284.1218321 | R36: 34985.01493 | T36: 19 | U36: 478.0313051 | V36: 310.020706 | W36: 168.0105992 | X36: 37034.47412
N37: 20 | O37: 578.0313051 | P37: 291.5417911 | Q37: 286.4895141 | R37: 34698.52541 | T37: 20 | U37: 478.0313051 | V37: 308.6206177 | W37: 169.4106875 | X37: 36865.06343
N38: 21 | O38: 578.0313051 | P38: 289.1543784 | Q38: 288.8769267 | R38: 34409.64849 | T38: 21 | U38: 478.0313051 | V38: 307.2088619 | W38: 170.8224432 | X38: 36694.24099
N39: 22 | O39: 578.0313051 | P39: 286.7470707 | Q39: 291.2842344 | R39: 34118.36425 | T39: 22 | U39: 478.0313051 | V39: 305.7853416 | W39: 172.2459636 | X39: 36521.99502
N40: 23 | O40: 578.0313051 | P40: 284.3197021 | Q40: 293.711603 | R40: 33824.65265 | T40: 23 | U40: 478.0313051 | V40: 304.3499585 | W40: 173.6813466 | X40: 36348.31368
N41: 24 | O41: 578.0313051 | P41: 281.8721054 | Q41: 296.1591997 | R41: 33528.49345 | T41: 24 | U41: 478.0313051 | V41: 302.902614 | W41: 175.1286912 | X41: 36173.18499
N42: 25 | O42: 578.0313051 | P42: 279.4041121 | Q42: 298.627193 | R42: 33229.86626 | T42: 25 | U42: 478.0313051 | V42: 301.4432082 | W42: 176.5880969 | X42: 35996.59689
N43: 26 | O43: 578.0313051 | P43: 276.9155521 | Q43: 301.115753 | R43: 32928.7505 | T43: 26 | U43: 478.0313051 | V43: 299.9716407 | W43: 178.0596644 | X43: 35818.53723
N44: 27 | O44: 578.0313051 | P44: 274.4062542 | Q44: 303.6250509 | R44: 32625.12545 | T44: 27 | U44: 478.0313051 | V44: 298.4878102 | W44: 179.5434949 | X44: 35638.99373
N45: 28 | O45: 578.0313051 | P45: 271.8760454 | Q45: 306.1552597 | R45: 32318.97019 | T45: 28 | U45: 478.0313051 | V45: 296.9916144 | W45: 181.0396907 | X45: 35457.95404
N46: 29 | O46: 578.0313051 | P46: 269.3247516 | Q46: 308.7065535 | R46: 32010.26364 | T46: 29 | U46: 478.0313051 | V46: 295.4829503 | W46: 182.5483548 | X46: 35275.40568
N47: 30 | O47: 578.0313051 | P47: 266.752197 | Q47: 311.2791081 | R47: 31698.98453 | T47: 30 | U47: 478.0313051 | V47: 293.961714 | W47: 184.0695911 | X47: 35091.33609
N48: 31 | O48: 578.0313051 | P48: 264.1582044 | Q48: 313.8731007 | R48: 31385.11143 | T48: 31 | U48: 478.0313051 | V48: 292.4278008 | W48: 185.6035044 | X48: 34905.73259
N49: 32 | O49: 578.0313051 | P49: 261.5425953 | Q49: 316.4887099 | R49: 31068.62272 | T49: 32 | U49: 478.0313051 | V49: 290.8811049 | W49: 187.1502002 | X49: 34718.58239
N50: 33 | O50: =payment+additional_payment -> 578.0313051 | P50: 258.9051893 | Q50: 319.1261158 | R50: 30749.49661 | T50: 33 | U50: =payment -> 478.0313051 | V50: 289.3215199 | W50: 188.7097852 | X50: 34529.8726
N51: 34 | O51: 578.0313051 | P51: =(rate/12)*R50 -> 256.245805 | Q51: 321.7855001 | R51: 30427.71111 | T51: 34 | U51: 478.0313051 | V51: =(rate/12)*X50 -> 287.7489384 | W51: 190.2823668 | X51: 34339.59024
N52: 35 | O52: 578.0313051 | P52: 253.5642592 | Q52: 324.4670459 | R52: 30103.24406 | T52: 35 | U52: 478.0313051 | V52: 286.163252 | W52: 191.8680532 | X52: 34147.72218
N53: 36 | O53: 578.0313051 | P53: 250.8603672 | Q53: 327.170938 | R53: 29776.07312 | T53: 36 | U53: 478.0313051 | V53: 284.5643515 | W53: 193.4669536 | X53: 33954.25523
N54: 37 | O54: 578.0313051 | P54: 248.1339427 | Q54: 329.8973625 | R54: 29446.17576 | T54: 37 | U54: 478.0313051 | V54: 282.9521269 | W54: 195.0791782 | X54: 33759.17605
N55: 38 | O55: 578.0313051 | P55: 245.384798 | Q55: 332.6465071 | R55: 29113.52925 | T55: 38 | U55: 478.0313051 | V55: 281.3264671 | W55: 196.704838 | X55: 33562.47121
N56: 39 | O56: 578.0313051 | P56: 242.6127438 | Q56: 335.4185614 | R56: 28778.11069 | T56: 39 | U56: 478.0313051 | V56: 279.6872601 | W56: 198.344045 | X56: 33364.12717
N57: 40 | O57: 578.0313051 | P57: 239.8175891 | Q57: 338.213716 | R57: 28439.89697 | T57: 40 | U57: 478.0313051 | V57: 278.0343931 | W57: 199.9969121 | X57: 33164.13026
N58: 41 | O58: 578.0313051 | P58: 236.9991415 | Q58: 341.0321637 | R58: 28098.86481 | T58: 41 | U58: 478.0313051 | V58: 276.3677521 | W58: 201.663553 | X58: 32962.4667
N59: 42 | O59: 578.0313051 | P59: 234.1572068 | Q59: 343.8740984 | R59: 27754.99071 | T59: 42 | U59: 478.0313051 | V59: 274.6872225 | W59: 203.3440826 | X59: 32759.12262
N60: 43 | O60: 578.0313051 | P60: 231.2915893 | Q60: 346.7397159 | R60: 27408.251 | T60: 43 | U60: 478.0313051 | V60: 272.9926885 | W60: 205.0386166 | X60: 32554.084
N61: 44 | O61: 578.0313051 | P61: 228.4020916 | Q61: 349.6292135 | R61: 27058.62178 | T61: 44 | U61: 478.0313051 | V61: 271.2840334 | W61: 206.7472718 | X61: 32347.33673
N62: 45 | O62: 578.0313051 | P62: 225.4885149 | Q62: 352.5427903 | R62: 26706.07899 | T62: 45 | U62: 478.0313051 | V62: 269.5611394 | W62: 208.4701657 | X62: 32138.86657
N63: 46 | O63: 578.0313051 | P63: 222.5506583 | Q63: 355.4806469 | R63: 26350.59835 | T63: 46 | U63: 478.0313051 | V63: 267.8238881 | W63: 210.2074171 | X63: 31928.65915
N64: 47 | O64: 578.0313051 | P64: 219.5883195 | Q64: 358.4429856 | R64: 25992.15536 | T64: 47 | U64: 478.0313051 | V64: 266.0721596 | W64: 211.9591455 | X64: 31716.7
N65: 48 | O65: 578.0313051 | P65: 216.6012947 | Q65: 361.4300105 | R65: 25630.72535 | T65: 48 | U65: 478.0313051 | V65: 264.3058334 | W65: 213.7254718 | X65: 31502.97453
N66: 49 | O66: 578.0313051 | P66: 213.5893779 | Q66: 364.4419272 | R66: 25266.28342 | T66: 49 | U66: 478.0313051 | V66: 262.5247878 | W66: 215.5065174 | X66: 31287.46802
N67: 50 | O67: 578.0313051 | P67: 210.5523619 | Q67: 367.4789433 | R67: 24898.80448 | T67: 50 | U67: 478.0313051 | V67: 260.7289001 | W67: 217.302405 | X67: 31070.16561
N68: 51 | O68: 578.0313051 | P68: 207.4900373 | Q68: 370.5412678 | R68: 24528.26321 | T68: 51 | U68: 478.0313051 | V68: 258.9180468 | W68: 219.1132584 | X68: 30851.05235
N69: 52 | O69: 578.0313051 | P69: 204.4021934 | Q69: 373.6291117 | R69: 24154.6341 | T69: 52 | U69: 478.0313051 | V69: 257.0921029 | W69: 220.9392022 | X69: 30630.11315
N70: 53 | O70: 578.0313051 | P70: 201.2886175 | Q70: 376.7426876 | R70: 23777.89141 | T70: 53 | U70: 478.0313051 | V70: 255.2509429 | W70: 222.7803622 | X70: 30407.33279
N71: 54 | O71: 578.0313051 | P71: 198.1490951 | Q71: 379.88221 | R71: 23398.0092 | T71: 54 | U71: 478.0313051 | V71: 253.3944399 | W71: 224.6368652 | X71: 30182.69592
N72: 55 | O72: 578.0313051 | P72: 194.98341 | Q72: 383.0478951 | R72: 23014.96131 | T72: 55 | U72: 478.0313051 | V72: 251.522466 | W72: 226.5088391 | X72: 29956.18708
N73: 56 | O73: 578.0313051 | P73: 191.7913442 | Q73: 386.2399609 | R73: 22628.72135 | T73: 56 | U73: 478.0313051 | V73: 249.6348924 | W73: 228.3964128 | X73: 29727.79067
N74: 57 | O74: 578.0313051 | P74: 188.5726779 | Q74: 389.4586272 | R74: 22239.26272 | T74: 57 | U74: 478.0313051 | V74: 247.7315889 | W74: 230.2997162 | X74: 29497.49095
N75: 58 | O75: 578.0313051 | P75: 185.3271893 | Q75: 392.7041158 | R75: 21846.5586 | T75: 58 | U75: 478.0313051 | V75: 245.8124246 | W75: 232.2188805 | X75: 29265.27207
N76: 59 | O76: 578.0313051 | P76: 182.054655 | Q76: 395.9766501 | R76: 21450.58195 | T76: 59 | U76: 478.0313051 | V76: 243.8772673 | W76: 234.1540378 | X76: 29031.11804
N77: 60 | O77: 578.0313051 | P77: 178.7548496 | Q77: 399.2764555 | R77: 21051.3055 | T77: 60 | U77: 478.0313051 | V77: 241.9259836 | W77: 236.1053215 | X77: 28795.01271
N78: 61 | O78: 578.0313051 | P78: 175.4275458 | Q78: 402.6037593 | R78: 20648.70174 | T78: 61 | U78: 478.0313051 | V78: 239.9584393 | W78: 238.0728658 | X78: 28556.93985
N79: 62 | O79: 578.0313051 | P79: 172.0725145 | Q79: 405.9587906 | R79: 20242.74295 | T79: 62 | U79: 478.0313051 | V79: 237.9744987 | W79: 240.0568064 | X79: 28316.88304
N80: 63 | O80: 578.0313051 | P80: 168.6895246 | Q80: 409.3417806 | R80: 19833.40117 | T80: 63 | U80: 478.0313051 | V80: 235.9740254 | W80: 242.0572798 | X80: 28074.82576
N81: 64 | O81: 578.0313051 | P81: 165.2783431 | Q81: 412.7529621 | R81: 19420.6482 | T81: 64 | U81: 478.0313051 | V81: 233.9568814 | W81: 244.0744238 | X81: 27830.75134
N82: 65 | O82: =payment+additional_payment -> 578.0313051 | P82: 161.838735 | Q82: 416.1925701 | R82: 19004.45563 | T82: 65 | U82: =payment -> 478.0313051 | V82: 231.9229278 | W82: 246.1083773 | X82: 27584.64296
N83: 66 | O83: 578.0313051 | P83: =(rate/12)*R82 -> 158.3704636 | Q83: 419.6608415 | R83: 18584.79479 | T83: 66 | U83: 478.0313051 | V83: =(rate/12)*X82 -> 229.8720247 | W83: 248.1592805 | X83: 27336.48368
N84: 67 | O84: 578.0313051 | P84: 154.8732899 | Q84: =O84-P84 -> 423.1580152 | R84: =R83-Q84 -> 18161.63678 | T84: 67 | U84: 478.0313051 | V84: 227.8040307 | W84: =U84-V84 -> 250.2272745 | X84: =X83-W84 -> 27086.25641
N85: 68 | O85: 578.0313051 | P85: 151.3469731 | Q85: 426.684332 | R85: 17734.95245 | T85: 68 | U85: 478.0313051 | V85: 225.7188034 | W85: 252.3125017 | X85: 26833.9439
N86: 69 | O86: 578.0313051 | P86: 147.7912704 | Q86: 430.2400347 | R86: 17304.71241 | T86: 69 | U86: 478.0313051 | V86: 223.6161992 | W86: 254.4151059 | X86: 26579.5288
N87: 70 | O87: 578.0313051 | P87: 144.2059368 | Q87: 433.8253684 | R87: 16870.88704 | T87: 70 | U87: 478.0313051 | V87: 221.4960733 | W87: 256.5352318 | X87: 26322.99357
N88: 71 | O88: 578.0313051 | P88: 140.5907254 | Q88: 437.4405798 | R88: 16433.44646 | T88: 71 | U88: 478.0313051 | V88: 219.3582797 | W88: 258.6730254 | X88: 26064.32054
N89: 72 | O89: 578.0313051 | P89: 136.9453872 | Q89: 441.0859179 | R89: 15992.36054 | T89: 72 | U89: 478.0313051 | V89: 217.2026712 | W89: 260.828634 | X89: 25803.49191
N90: 73 | O90: 578.0313051 | P90: 133.2696712 | Q90: 444.7616339 | R90: 15547.59891 | T90: 73 | U90: 478.0313051 | V90: 215.0290992 | W90: 263.0022059 | X90: 25540.4897
N91: 74 | O91: 578.0313051 | P91: 129.5633243 | Q91: 448.4679809 | R91: 15099.13093 | T91: 74 | U91: 478.0313051 | V91: 212.8374142 | W91: 265.1938909 | X91: 25275.29581
N92: 75 | O92: 578.0313051 | P92: 125.8260911 | Q92: 452.205214 | R92: 14646.92572 | T92: 75 | U92: 478.0313051 | V92: 210.6274651 | W92: 267.40384 | X92: 25007.89197
N93: 76 | O93: 578.0313051 | P93: 122.0577143 | Q93: 455.9735908 | R93: 14190.95213 | T93: 76 | U93: 478.0313051 | V93: 208.3990998 | W93: 269.6322054 | X93: 24738.25977
N94: 77 | O94: 578.0313051 | P94: 118.2579344 | Q94: 459.7733708 | R94: 13731.17875 | T94: 77 | U94: 478.0313051 | V94: 206.1521647 | W94: 271.8791404 | X94: 24466.38063
N95: 78 | O95: 578.0313051 | P95: 114.4264896 | Q95: 463.6048155 | R95: 13267.57394 | T95: 78 | U95: 478.0313051 | V95: 203.8865052 | W95: 274.1447999 | X95: 24192.23583
N96: 79 | O96: 578.0313051 | P96: 110.5631162 | Q96: 467.468189 | R96: 12800.10575 | T96: 79 | U96: 478.0313051 | V96: 201.6019652 | W96: 276.4293399 | X96: 23915.80649
N97: 80 | O97: 578.0313051 | P97: 106.6675479 | Q97: 471.3637572 | R97: 12328.74199 | T97: 80 | U97: 478.0313051 | V97: 199.2983874 | W97: 278.7329178 | X97: 23637.07357
N98: 81 | O98: 578.0313051 | P98: 102.7395166 | Q98: 475.2917885 | R98: 11853.4502 | T98: 81 | U98: 478.0313051 | V98: 196.9756131 | W98: 281.0556921 | X98: 23356.01788
N99: 82 | O99: 578.0313051 | P99: 98.7787517 | Q99: 479.2525534 | R99: 11374.19765 | T99: 82 | U99: 478.0313051 | V99: 194.6334823 | W99: 283.3978228 | X99: 23072.62005
N100: 83 | O100: 578.0313051 | P100: 94.78498042 | Q100: 483.2463247 | R100: 10890.95133 | T100: 83 | U100: 478.0313051 | V100: 192.2718338 | W100: 285.7594714 | X100: 22786.86058
N101: 84 | O101: 578.0313051 | P101: 90.75792772 | Q101: 487.2733774 | R101: 10403.67795 | T101: 84 | U101: 478.0313051 | V101: 189.8905048 | W101: 288.1408003 | X101: 22498.71978
N102: 85 | O102: 578.0313051 | P102: 86.69731624 | Q102: 491.3339889 | R102: 9912.34396 | T102: 85 | U102: 478.0313051 | V102: 187.4893315 | W102: 290.5419736 | X102: 22208.17781
N103: 86 | O103: 578.0313051 | P103: 82.60286633 | Q103: 495.4284388 | R103: 9416.915521 | T103: 86 | U103: 478.0313051 | V103: 185.0681484 | W103: 292.9631567 | X103: 21915.21465
N104: 87 | O104: 578.0313051 | P104: 78.47429601 | Q104: 499.5570091 | R104: 8917.358512 | T104: 87 | U104: 478.0313051 | V104: 182.6267888 | W104: 295.4045164 | X104: 21619.81013
N105: 88 | O105: 578.0313051 | P105: 74.31132093 | Q105: 503.7199842 | R105: 8413.638528 | T105: 88 | U105: 478.0313051 | V105: 180.1650845 | W105: 297.8662207 | X105: 21321.94391
N106: 89 | O106: 578.0313051 | P106: 70.1136544 | Q106: 507.9176507 | R106: 7905.720877 | T106: 89 | U106: 478.0313051 | V106: 177.6828659 | W106: 300.3484392 | X106: 21021.59547
N107: 90 | O107: 578.0313051 | P107: 65.88100731 | Q107: 512.1502978 | R107: 7393.570579 | T107: 90 | U107: 478.0313051 | V107: 175.1799623 | W107: 302.8513428 | X107: 20718.74413
N108: 91 | O108: 578.0313051 | P108: 61.61308816 | Q108: 516.418217 | R108: 6877.152362 | T108: 91 | U108: 478.0313051 | V108: 172.6562011 | W108: 305.375104 | X108: 20413.36903
N109: 92 | O109: 578.0313051 | P109: 57.30960302 | Q109: 520.7217021 | R109: 6356.43066 | T109: 92 | U109: 478.0313051 | V109: 170.1114086 | W109: 307.9198966 | X109: 20105.44913
N110: 93 | O110: 578.0313051 | P110: 52.9702555 | Q110: 525.0610496 | R110: 5831.369611 | T110: 93 | U110: 478.0313051 | V110: 167.5454094 | W110: 310.4858957 | X110: 19794.96324
N111: 94 | O111: 578.0313051 | P111: 48.59474675 | Q111: 529.4365584 | R111: 5301.933052 | T111: 94 | U111: 478.0313051 | V111: 164.958027 | W111: 313.0732782 | X111: 19481.88996
N112: 95 | O112: 578.0313051 | P112: 44.18277543 | Q112: 533.8485297 | R112: 4768.084522 | T112: 95 | U112: 478.0313051 | V112: 162.349083 | W112: 315.6822222 | X112: 19166.20773
N113: 96 | O113: 578.0313051 | P113: 39.73403769 | Q113: 538.2972674 | R113: 4229.787255 | T113: 96 | U113: 478.0313051 | V113: 159.7183978 | W113: 318.3129073 | X113: 18847.89483
N114: 97 | O114: =payment+additional_payment -> 578.0313051 | P114: 35.24822713 | Q114: 542.783078 | R114: 3687.004177 | T114: 97 | U114: =payment -> 478.0313051 | V114: 157.0657902 | W114: 320.9655149 | X114: 18526.92931
N115: 98 | O115: 578.0313051 | P115: =(rate/12)*R114 -> 30.72503481 | Q115: 547.3062703 | R115: 3139.697907 | T115: 98 | U115: 478.0313051 | V115: =(rate/12)*X114 -> 154.3910776 | W115: 323.6402275 | X115: 18203.28909
N116: 99 | O116: 578.0313051 | P116: 26.16414922 | Q116: 551.8671559 | R116: 2587.830751 | T116: 99 | U116: 478.0313051 | V116: 151.6940757 | W116: 326.3372294 | X116: 17876.95186
N117: 100 | O117: 578.0313051 | P117: 21.56525626 | Q117: 556.4660489 | R117: 2031.364702 | T117: 100 | U117: 478.0313051 | V117: 148.9745988 | W117: 329.0567063 | X117: 17547.89515
N118: 101 | O118: 578.0313051 | P118: 16.92803918 | Q118: 561.1032659 | R118: 1470.261436 | T118: 101 | U118: 478.0313051 | V118: 146.2324596 | W118: 331.7988456 | X118: 17216.0963
N119: 102 | O119: 578.0313051 | P119: 12.25217863 | Q119: 565.7791265 | R119: 904.4823095 | T119: 102 | U119: 478.0313051 | V119: 143.4674692 | W119: 334.5638359 | X119: 16881.53247
N120: 103 | O120: 578.0313051 | P120: 7.537352579 | Q120: 570.4939526 | R120: 333.9883569 | T120: 103 | U120: 478.0313051 | V120: 140.6794372 | W120: 337.3518679 | X120: 16544.1806
N121: 104 | O121: 336.77 | P121: 2.783236307 | Q121: 333.9867637 | R121: 0.001593207361 | T121: 104 | U121: 478.0313051 | V121: 137.8681717 | W121: 340.1631335 | X121: 16204.01747
T122: 105 | U122: 478.0313051 | V122: 135.0334789 | W122: 342.9978262 | X122: 15861.01964
T123: 106 | U123: 478.0313051 | V123: 132.1751637 | W123: 345.8561415 | X123: 15515.1635
T124: 107 | U124: 478.0313051 | V124: 129.2930292 | W124: 348.738276 | X124: 15166.42522
T125: 108 | U125: 478.0313051 | V125: 126.3868769 | W125: 351.6444283 | X125: 14814.78079
T126: 109 | U126: 478.0313051 | V126: 123.4565066 | W126: 354.5747985 | X126: 14460.206
T127: 110 | U127: 478.0313051 | V127: 120.5017166 | W127: 357.5295885 | X127: 14102.67641
T128: 111 | U128: 478.0313051 | V128: 117.5223034 | W128: 360.5090017 | X128: 13742.16741
T129: 112 | U129: 478.0313051 | V129: 114.5180617 | W129: 363.5132434 | X129: 13378.65416
T130: 113 | U130: 478.0313051 | V130: 111.4887847 | W130: 366.5425204 | X130: 13012.11164
T131: 114 | U131: 478.0313051 | V131: 108.4342637 | W131: 369.5970414 | X131: 12642.5146
T132: 115 | U132: 478.0313051 | V132: 105.3542883 | W132: 372.6770168 | X132: 12269.83758
T133: 116 | U133: 478.0313051 | V133: 102.2486465 | W133: 375.7826586 | X133: 11894.05493
T134: 117 | U134: 478.0313051 | V134: 99.11712438 | W134: 378.9141808 | X134: 11515.14074
T135: 118 | U135: 478.0313051 | V135: 95.9595062 | W135: 382.0717989 | X135: 11133.06895
T136: 119 | U136: 478.0313051 | V136: 92.77557454 | W136: 385.2557306 | X136: 10747.81321
T137: 120 | U137: 478.0313051 | V137: 89.56511012 | W137: 388.466195 | X137: 10359.34702
T138: 121 | U138: 478.0313051 | V138: 86.32789183 | W138: 391.7034133 | X138: 9967.643606
T139: 122 | U139: 478.0313051 | V139: 83.06369672 | W139: 394.9676084 | X139: 9572.675998
T140: 123 | U140: 478.0313051 | V140: 79.77229998 | W140: 398.2590051 | X140: 9174.416993
T141: 124 | U141: 478.0313051 | V141: 76.45347494 | W141: 401.5778302 | X141: 8772.839163
T142: 125 | U142: 478.0313051 | V142: 73.10699302 | W142: 404.9243121 | X142: 8367.914851
T143: 126 | U143: 478.0313051 | V143: 69.73262375 | W143: 408.2986814 | X143: 7959.616169
T144: 127 | U144: 478.0313051 | V144: 66.33013474 | W144: 411.7011704 | X144: 7547.914999
T145: 128 | U145: 478.0313051 | V145: 62.89929166 | W145: 415.1320135 | X145: 7132.782985
T146: 129 | U146: =payment -> 478.0313051 | V146: 59.43985821 | W146: 418.5914469 | X146: 6714.191538
T147: 130 | U147: 478.0313051 | V147: =(rate/12)*X146 -> 55.95159615 | W147: 422.079709 | X147: 6292.111829
T148: 131 | U148: 478.0313051 | V148: 52.43426525 | W148: =U148-V148 -> 425.5970399 | X148: =X147-W148 -> 5866.51479
T149: 132 | U149: 478.0313051 | V149: 48.88762325 | W149: 429.1436819 | X149: 5437.371108
T150: 133 | U150: 478.0313051 | V150: 45.3114259 | W150: 432.7198792 | X150: 5004.651228
T151: 134 | U151: 478.0313051 | V151: 41.7054269 | W151: 436.3258782 | X151: 4568.32535
T152: 135 | U152: 478.0313051 | V152: 38.06937792 | W152: 439.9619272 | X152: 4128.363423
T153: 136 | U153: 478.0313051 | V153: 34.40302853 | W153: 443.6282766 | X153: 3684.735146
T154: 137 | U154: 478.0313051 | V154: 30.70612622 | W154: 447.3251789 | X154: 3237.409967
T155: 138 | U155: 478.0313051 | V155: 26.9784164 | W155: 451.0528887 | X155: 2786.357079
T156: 139 | U156: 478.0313051 | V156: 23.21964232 | W156: 454.8116628 | X156: 2331.545416
T157: 140 | U157: 478.0313051 | V157: 19.42954513 | W157: 458.60176 | X157: 1872.943656
T158: 141 | U158: 478.0313051 | V158: 15.6078638 | W158: 462.4234413 | X158: 1410.520215
T159: 142 | U159: 478.0313051 | V159: 11.75433512 | W159: 466.27697 | X159: 944.2432446
T160: 143 | U160: 478.0313051 | V160: 7.868693705 | W160: 470.1626114 | X160: 474.0806332
T161: 144 | U161: 478.0313051 | V161: 3.950671943 | W161: 474.0806332 | X161: 1.637090463e-11

Sheet Help
